Workbook

Sheet data
A1: 1 | B1: 2 | C1: 3 | D1: 4 | E1: 5 | F1: 6 | G1: 7 | H1: 8 | I1: 9
D2: =SUBTOTAL(9,D4:D3999) -> 21860 | E2: =SUBTOTAL(9,E4:E3999) -> 4696 | F2: =D2-E2 -> 17164
A3: رقم الوصل | B3: نوع الوصل | C3: التاريخ | D3: الوارد | E3: المصروف | F3: جهة الإيراد / المصروف | G3: اسم الحساب | H3: الملاحظات | I3: اسم المستلم
C4: 2021-01-01 | D4: 5000 | E4: 0 | G4: E1
C5: 2021-01-02 | D5: 7000 | E5: 0 | G5: E5
C6: 2021-01-03 | D6: 0 | E6: 300 | G6: N4
C7: 2021-01-04 | D7: 0 | E7: 100 | G7: N6
C8: 2021-01-05 | D8: 0 | E8: 500 | G8: N12
C9: 2021-01-06 | D9: 0 | E9: 300 | G9: N2
C10: 2021-01-07 | D10: 7900 | E10: 0 | G10: E6
C11: 2021-01-08 | D11: 0 | E11: 360 | G11: N12
C12: 2021-01-09 | D12: 0 | E12: 570 | G12: N13
C13: 2021-01-10 | D13: 0 | E13: 260 | G13: N10
C14: 2021-01-11 | D14: 0 | E14: 346 | G14: N6
C15: 2021-01-12 | D15: 980 | E15: 0 | G15: E3
C16: 2021-01-13 | D16: 0 | E16: 760 | G16: N12
C17: 2021-01-14 | D17: 980 | E17: 0 | G17: E6
C18: 2021-01-15 | D18: 0 | E18: 1200 | G18: N10
C2510: 1l1 | G2510: E1
G2511: E1
G2512: N2
G2513: N4
G2514: E3
G2515: N9
G2516: E6
G2517: N11

Sheet ميزان مراجعة
C1: التاريخ من
C2: التاريخ الى
B3: ت | C3: الحساب | D3: المبلغ الكلي
C4: الإيرادات | D4: =SUM(D5:D12) -> 21860
B5: 1 | C5: E1 | D5: =SUMIF(data!G$4:G$2000,C5,data!D$4:D$2000) -> 5000
B6: 2 | C6: E2 | D6: =SUMIF(data!G$4:G$2000,C6,data!D$4:D$2000) -> 0
B7: 3 | C7: E3 | D7: =SUMIF(data!G$4:G$2000,C7,data!D$4:D$2000) -> 980
B8: 4 | C8: E4 | D8: =SUMIF(data!G$4:G$2000,C8,data!D$4:D$2000) -> 0
B9: 5 | C9: E5 | D9: =SUMIF(data!G$4:G$2000,C9,data!D$4:D$2000) -> 7000
C10: E6 | D10: =SUMIF(data!G$4:G$2000,C10,data!D$4:D$2000) -> 8880
C11: E7 | D11: =SUMIF(data!G$4:G$2000,C11,data!D$4:D$2000) -> 0
C12: E8 | D12: =SUMIF(data!G$4:G$2000,C12,data!D$4:D$2000) -> 0
C13: النفقات | D13: =SUM(D14:D48) -> 4696
B14: 1 | C14: N1 | D14: =SUMIF(data!G$4:G$2000,C14,data!E$4:E$2000) -> 0
B15: 2 | C15: N2 | D15: =SUMIF(data!G$4:G$2000,C15,data!E$4:E$2000) -> 300
B16: 3 | C16: N3 | D16: =SUMIF(data!G$4:G$2000,C16,data!E$4:E$2000) -> 0
B17: 4 | C17: N4 | D17: =SUMIF(data!G$4:G$2000,C17,data!E$4:E$2000) -> 300
B18: 5 | C18: N5 | D18: =SUMIF(data!G$4:G$2000,C18,data!E$4:E$2000) -> 0
B19: 6 | C19: N6 | D19: =SUMIF(data!G$4:G$2000,C19,data!E$4:E$2000) -> 446
B20: 7 | C20: N7 | D20: =SUMIF(data!G$4:G$2000,C20,data!E$4:E$2000) -> 0
B21: 8 | C21: N8 | D21: =SUMIF(data!G$4:G$2000,C21,data!E$4:E$2000) -> 0
B22: 9 | C22: N9 | D22: =SUMIF(data!G$4:G$2000,C22,data!E$4:E$2000) -> 0
B23: 10 | C23: N10 | D23: =SUMIF(data!G$4:G$2000,C23,data!E$4:E$2000) -> 1460
B24: 11 | C24: N11 | D24: =SUMIF(data!G$4:G$2000,C24,data!E$4:E$2000) -> 0
B25: 12 | C25: N12 | D25: =SUMIF(data!G$4:G$2000,C25,data!E$4:E$2000) -> 1620
B26: 13 | C26: N13 | D26: =SUMIF(data!G$4:G$2000,C26,data!E$4:E$2000) -> 570
B27: 14 | C27: N14 | D27: =SUMIF(data!G$4:G$2000,C27,data!E$4:E$2000) -> 0
B28: 15 | C28: N15 | D28: =SUMIF(data!G$4:G$2000,C28,data!E$4:E$2000) -> 0
B29: 16 | C29: N16 | D29: =SUMIF(data!G$4:G$2000,C29,data!E$4:E$2000) -> 0
B30: 17 | C30: N17 | D30: =SUMIF(data!G$4:G$2000,C30,data!E$4:E$2000) -> 0
B31: 18 | C31: N18 | D31: =SUMIF(data!G$4:G$2000,C31,data!E$4:E$2000) -> 0
B32: 19 | C32: N19 | D32: =SUMIF(data!G$4:G$2000,C32,data!E$4:E$2000) -> 0
B33: 20 | C33: N20 | D33: =SUMIF(data!G$4:G$2000,C33,data!E$4:E$2000) -> 0
B34: 21 | C34: N21 | D34: =SUMIF(data!G$4:G$2000,C34,data!E$4:E$2000) -> 0
B35: 22 | C35: N22 | D35: =SUMIF(data!G$4:G$2000,C35,data!E$4:E$2000) -> 0
B36: 23 | C36: N23 | D36: =SUMIF(data!G$4:G$2000,C36,data!E$4:E$2000) -> 0
B37: 24 | C37: N24 | D37: =SUMIF(data!G$4:G$2000,C37,data!E$4:E$2000) -> 0
B38: 25 | C38: N25 | D38: =SUMIF(data!G$4:G$2000,C38,data!E$4:E$2000) -> 0
B39: 26 | C39: N26 | D39: =SUMIF(data!G$4:G$2000,C39,data!E$4:E$2000) -> 0
B40: 27 | C40: N27 | D40: =SUMIF(data!G$4:G$2000,C40,data!E$4:E$2000) -> 0
B41: 28 | C41: N28 | D41: =SUMIF(data!G$4:G$2000,C41,data!E$4:E$2000) -> 0
B42: 29 | C42: N29 | D42: =SUMIF(data!G$4:G$2000,C42,data!E$4:E$2000) -> 0
B43: 30 | C43: N30 | D43: =SUMIF(data!G$4:G$2000,C43,data!E$4:E$2000) -> 0
B44: 31 | C44: N31 | D44: =SUMIF(data!G$4:G$2000,C44,data!E$4:E$2000) -> 0
B45: 32 | C45: N32 | D45: =SUMIF(data!G$4:G$2000,C45,data!E$4:E$2000) -> 0
B46: 33 | C46: N33 | D46: =SUMIF(data!G$4:G$2000,C46,data!E$4:E$2000) -> 0
B47: 34 | C47: N34 | D47: =SUMIF(data!G$4:G$2000,C47,data!E$4:E$2000) -> 0

Sheet دليل
A1: ت | B1: اسم الحساب | C1: القسم
A2: 1 | B2: e1 | C2: الايرادات
A3: 2 | B3: e2 | C3: الايرادات
A4: 3 | B4: e3 | C4: الايرادات
A5: 4 | B5: e4 | C5: الايرادات
A6: 5 | B6: e5 | C6: الايرادات
A7: 6 | B7: e6 | C7: الايرادات
A8: 7 | B8: e7 | C8: الايرادات
A9: 8
A10: 9
A11: 10
A12: 11 | B12: n1 | C12: النفقات
B13: n2 | C13: النفقات
B14: n3 | C14: النفقات
B15: n4 | C15: النفقات
B16: n5 | C16: النفقات
B17: n6 | C17: النفقات
B18: n7 | C18: النفقات
B19: n8 | C19: النفقات
B20: n9 | C20: النفقات
B21: n10 | C21: النفقات
B22: n11 | C22: النفقات
B23: n12 | C23: النفقات
B24: n13 | C24: النفقات
B25: n14 | C25: النفقات
B26: n15 | C26: النفقات
